[Event "16th Deltalift Open 2019"]
[Site "Halmstad"]
[Date "2019.05.31"]
[Round "5.13"]
[White "Ytterberg, Felix"]
[Black "Crevatin, Leo"]
[Result "0-1"]
[ECO "D31"]
[WhiteElo "2018"]
[BlackElo "2210"]
[Annotator "RC"]
[PlyCount "102"]
[EventDate "2019.05.30"]
[EventType "swiss"]
[EventCountry "SWE"]
[SourceTitle "playchess.com"]
[Source "ChessBase"]
[SourceQuality "1"]
[TimeControl "40/5400+30:1800+30"]

1. d4 {[%emt 0:00:00]} d5 {[%emt 0:00:00]} 2. c4 {[%emt 0:00:00]} e6 {[%emt 0:00:00]} 3. Nc3 {[%emt 0:00:00]} a6 {[%emt 0:00:00]} 4. cxd5 {[%emt 0:01:06]} exd5 {[%emt 0:00:00]} 5. Nf3 {[%emt 0:01:59]} Nf6 {[%emt 0:00:00]} 6. Bg5 {[%emt 0:01:01]} Be6 {[%emt 0:00:10]} 7. e3 {[%emt 0:01:31]} Nbd7 {[%emt 0:00:23]} 8. Bd3 {[%emt 0:00:34]} Bd6 {[%emt 0:00:24]} 9. Qc2 {[%emt 0:03:49]} h6 {[%emt 0:00:47]} 10. Bh4 {[%emt 0:00:23]} c6 {[%emt 0:03:12]} 11. Nd2 {[%emt 0:03:05]} Qc7 {[%emt 0:03:45]} 12. Bg3 {[%emt 0:01:54]} O-O {[%emt 0:09:21]} 13. Bxd6 {[%emt 0:02:51]} Qxd6 {[%emt 0:00:02]} 14. O-O {[%emt 0:02:37]} Rfe8 {[%emt 0:04:24]} 15. h3 {[%emt 0:01:56]} c5 {[%emt 0:05:51]} 16. Nf3 {[%emt 0:02:27]} c4 {[%emt 0:03:02]} 17. Be2 {[%emt 0:00:54]} b5 {[%emt 0:00:37]} 18. a3 {[%emt 0:04:46]} g6 {[%emt 0:08:05]} 19. Nh4 {[%emt 0:01:04]} Nf8 {[%emt 0:04:55]} 20. f4 {[%emt 0:00:38]} Bd7 {[%emt 0:03:00]} 21. f5 {[%emt 0:07:54]} g5 {[%emt 0:02:20]} 22. Nf3 {[%emt 0:00:12]} Rxe3 {[%emt 0:04:05]} 23. Ne5 {[%emt 0:00:35]} Qb6 {[%emt 0:01:29]} 24. Qd2 {[%emt 0:00:59]} Rxe5 {[%emt 0:00:07]} 25. Kh1 {[%emt 0:02:25]} Re7 {[%emt 0:03:59]} 26. h4 {[%emt 0:00:25]} N8h7 {[%emt 0:01:08]} 27. Bf3 {[%emt 0:02:06]} Qd6 {[%emt 0:00:19]} 28. Nxd5 {[%emt 0:02:19]} Nxd5 {[%emt 0:00:30]} 29. f6 {[%emt 0:00:22]} Re6 {[%emt 0:01:38]} 30. hxg5 {[%emt 0:00:41]} hxg5 {[%emt 0:01:52]} 31. Bg4 {[%emt 0:01:23]} Re4 {[%emt 0:01:36]} 32. Bxd7 {[%emt 0:04:05]} Rh4+ {[%emt 0:02:55]} 33. Bh3 {[%emt 0:00:20]} Nf4 {[%emt 0:01:35]} 34. Rf3 {[%emt 0:01:40]} Nxf6 {[%emt 0:00:56]} 35. Re1 {[%emt 0:03:53]} Nxh3 {[%emt 0:00:25]} 36. gxh3 {[%emt 0:00:10]} Qd5 {[%emt 0:00:30]} 37. Kh2 {[%emt 0:00:23]} Rxd4 {[%emt 0:01:06]} 38. Qg2 {[%emt 0:01:54]} Rd2 {[%emt 0:00:45]} 39. Re2 {[%emt 0:00:18]} Rxe2 {[%emt 0:00:04]} 40. Qxe2 {[%emt 0:00:12]} Re8 {[%emt 0:01:07]} 41. Qg2 {[%emt 0:30:36]} Qd6+ {[%emt 0:30:14]} 42. Kg1 {[%emt 0:01:07]} Re1+ {[%emt 0:00:08]} 43. Rf1 {[%emt 0:00:29]} Rxf1+ {[%emt 0:00:28]} 44. Qxf1 {[%emt 0:00:10]} Qg3+ {[%emt 0:00:10]} 45. Kh1 {[%emt 0:00:11]} Ne4 {[%emt 0:00:10]} 46. Qg2 {[%emt 0:00:22]} Nf2+ {[%emt 0:00:10]} 47. Kg1 {[%emt 0:00:12]} Nxh3+ {[%emt 0:00:05]} 48. Kf1 {[%emt 0:00:13]} Qxg2+ {[%emt 0:00:05]} 49. Kxg2 {[%emt 0:00:10]} g4 {[%emt 0:00:07]} 50. Kg3 {[%emt 0:00:13]} f5 {[%emt 0:00:04]} 51. Kh4 {[%emt 0:00:21]} a5 {[%emt 0:00:44]} 0-1

[Event "16th Deltalift Open 2019"]
[Site "Halmstad"]
[Date "2019.05.31"]
[Round "5.16"]
[White "Silseth, Simon"]
[Black "Stray, Gunnar"]
[Result "1-0"]
[ECO "B26"]
[WhiteElo "2268"]
[BlackElo "2005"]
[Annotator "RC"]
[PlyCount "59"]
[EventDate "2019.05.30"]
[EventType "swiss"]
[EventCountry "SWE"]
[SourceTitle "playchess.com"]
[Source "ChessBase"]
[SourceQuality "1"]
[TimeControl "40/5400+30:1800+30"]

1. e4 {[%emt 0:00:00]} c5 {[%emt 0:00:00]} 2. Nc3 {[%emt 0:00:00]} Nc6 {[%emt 0:00:00]} 3. g3 {[%emt 0:00:03]} g6 {[%emt 0:00:00]} 4. Bg2 {[%emt 0:00:08]} Bg7 {[%emt 0:00:00]} 5. d3 {[%emt 0:00:14]} d6 {[%emt 0:00:00]} 6. Be3 {[%emt 0:01:24]} Bd7 {[%emt 0:00:45]} 7. Nge2 {[%emt 0:01:24]} Rb8 {[%emt 0:01:03]} 8. d4 {[%emt 0:05:14]} cxd4 {[%emt 0:01:29]} 9. Nxd4 {[%emt 0:00:13]} h5 {[%emt 0:02:28]} 10. Nxc6 {[%emt 0:12:03]} bxc6 {[%emt 0:00:27]} 11. Bxa7 {[%emt 0:04:45]} Rxb2 {[%emt 0:01:43]} 12. Bd4 {[%emt 0:00:43]} e5 {[%emt 0:01:09]} 13. Be3 {[%emt 0:01:32]} Be6 {[%emt 0:04:35]} 14. Qd3 {[%emt 0:12:40]} Bf8 {[%emt 0:00:00]} 15. O-O {[%emt 0:04:55]} Nh6 {[%emt 0:20:30]} 16. h3 {[%emt 0:04:23]} Qc8 {[%emt 0:08:26]} 17. Rfb1 {[%emt 0:11:42]} Rxb1+ {[%emt 0:06:40]} 18. Rxb1 {[%emt 0:00:08]} Be7 {[%emt 0:00:15]} 19. Qd2 {[%emt 0:14:25]} Bf8 {[%emt 0:04:41]} 20. Ba7 {[%emt 0:05:52]} Qa6 {[%emt 0:03:57]} 21. Rb8+ {[%emt 0:00:55]} Bc8 {[%emt 0:01:52]} 22. Be3 {[%emt 0:06:08]} Kd7 {[%emt 0:02:12]} 23. a4 {[%emt 0:00:45]} f6 {[%emt 0:01:38]} 24. Bf1 {[%emt 0:03:36]} Qa5 {[%emt 0:00:47]} 25. Bb6 {[%emt 0:00:19]} Qb4 {[%emt 0:00:20]} 26. a5 {[%emt 0:00:32]} Qa3 {[%emt 0:01:22]} 27. Nb5 {[%emt 0:01:34]} Qa1 {[%emt 0:01:12]} 28. Rxc8 {[%emt 0:01:32]} Kxc8 {[%emt 0:01:33]} 29. Nxd6+ {[%emt 0:00:08]} Kb8 {[%emt 0:01:38]} 30. Ne8 {[%emt 0:01:11]} 1-0

[Event "16th Deltalift Open 2019"]
[Site "Halmstad"]
[Date "2019.05.31"]
[Round "5.23"]
[White "Ask, Josef"]
[Black "Hautajarvi, Jukka"]
[Result "1-0"]
[ECO "B00"]
[WhiteElo "2149"]
[BlackElo "2068"]
[Annotator "RC"]
[PlyCount "97"]
[EventDate "2019.05.30"]
[EventType "swiss"]
[EventCountry "SWE"]
[SourceTitle "playchess.com"]
[Source "ChessBase"]
[SourceQuality "1"]
[TimeControl "40/5400+30:1800+30"]

1. e4 {[%emt 0:00:00]} d6 {[%emt 0:00:02]} 2. d3 {[%emt 0:00:01]} Nf6 {[%emt 0:00:07]} 3. f4 {[%emt 0:01:35]} e5 {[%emt 0:01:03]} 4. Nf3 {[%emt 0:00:19]} Nc6 {[%emt 0:00:13]} 5. Be2 {[%emt 0:01:28]} Be7 {[%emt 0:01:09]} 6. O-O {[%emt 0:02:50]} h6 {[%emt 0:06:41]} 7. Nc3 {[%emt 0:01:48]} Bg4 {[%emt 0:01:04]} 8. h3 {[%emt 0:04:25]} Bxf3 {[%emt 0:01:49]} 9. Bxf3 {[%emt 0:00:23]} Nd4 {[%emt 0:00:11]} 10. Be3 {[%emt 0:01:19]} c5 {[%emt 0:02:58]} 11. Kh1 {[%emt 0:03:22]} Rc8 {[%emt 0:02:12]} 12. g4 {[%emt 0:02:11]} exf4 {[%emt 0:04:52]} 13. Bxf4 {[%emt 0:00:47]} Ne6 {[%emt 0:02:52]} 14. Be3 {[%emt 0:00:42]} Qd7 {[%emt 0:01:28]} 15. Bg2 {[%emt 0:00:57]} Nf8 {[%emt 0:04:38]} 16. d4 {[%emt 0:04:26]} cxd4 {[%emt 0:02:47]} 17. Bxd4 {[%emt 0:06:48]} Ne6 {[%emt 0:02:02]} 18. Bxa7 {[%emt 0:01:20]} h5 {[%emt 0:00:13]} 19. Kg1 {[%emt 0:05:39]} hxg4 {[%emt 0:01:06]} 20. hxg4 {[%emt 0:00:22]} Ng5 {[%emt 0:07:59]} 21. Rf5 {[%emt 0:00:58]} Nh3+ {[%emt 0:01:46]} 22. Kf1 {[%emt 0:00:56]} g6 {[%emt 0:00:56]} 23. Rf3 {[%emt 0:01:15]} Ng5 {[%emt 0:00:22]} 24. Rg3 {[%emt 0:01:53]} b6 {[%emt 0:03:39]} 25. Bxb6 {[%emt 0:01:18]} Rxc3 {[%emt 0:00:22]} 26. Rxc3 {[%emt 0:01:06]} Qb5+ {[%emt 0:00:29]} 27. Qd3 {[%emt 0:00:52]} Qxb6 {[%emt 0:00:09]} 28. Rc8+ {[%emt 0:00:30]} Bd8 {[%emt 0:00:12]} 29. a4 {[%emt 0:07:49]} Nxg4 {[%emt 0:00:37]} 30. Qb5+ {[%emt 0:00:37]} Qxb5+ {[%emt 0:00:10]} 31. axb5 {[%emt 0:00:04]} Rh2 {[%emt 0:01:29]} 32. Raa8 {[%emt 0:00:53]} Ne6 {[%emt 0:00:10]} 33. b6 {[%emt 0:00:51]} Ke7 {[%emt 0:03:43]} 34. b7 {[%emt 0:00:39]} Ne3+ {[%emt 0:02:10]} 35. Ke2 {[%emt 0:01:08]} Bb6 {[%emt 0:05:05]} 36. b8=Q {[%emt 0:00:52]} Rxg2+ {[%emt 0:00:16]} 37. Kd3 {[%emt 0:00:29]} Nf4+ {[%emt 0:04:49]} 38. Kc3 {[%emt 0:00:14]} Rxc2+ {[%emt 0:01:51]} 39. Kb3 {[%emt 0:00:17]} Rxc8 {[%emt 0:00:59]} 40. Qxc8 {[%emt 0:00:16]} Ne6 {[%emt 0:00:40]} 41. Ka2 {[%emt 0:32:06]} Ng4 {[%emt 0:30:58]} 42. Rb8 {[%emt 0:01:12]} Bd4 {[%emt 0:01:03]} 43. Rb7+ {[%emt 0:00:23]} Kf6 {[%emt 0:00:08]} 44. b4 {[%emt 0:00:39]} Nf2 {[%emt 0:02:36]} 45. Qd7 {[%emt 0:00:32]} Nxe4 {[%emt 0:00:32]} 46. Qxf7+ {[%emt 0:00:13]} Ke5 {[%emt 0:00:23]} 47. Re7 {[%emt 0:00:31]} N4g5 {[%emt 0:00:32]} 48. Qxg6 {[%emt 0:00:14]} Kd5 {[%emt 0:00:08]} 49. Qf5+ {[%emt 0:01:00]} 1-0

[Event "16th Deltalift Open 2019"]
[Site "Halmstad"]
[Date "2019.05.31"]
[Round "6.1"]
[White "Malmstig, Erik"]
[Black "Cramling, Pia"]
[Result "0-1"]
[ECO "B40"]
[WhiteElo "2352"]
[BlackElo "2454"]
[Annotator "ChessBase"]
[PlyCount "68"]
[EventDate "2019.05.30"]
[EventType "swiss"]
[EventCountry "SWE"]
[SourceTitle "playchess.com"]
[Source "ChessBase"]
[SourceQuality "1"]
[TimeControl "40/5400+30:1800+30"]

1. e4 {[%emt 0:00:00]} c5 {[%emt 0:01:41]} 2. Nf3 {[%emt 0:00:00]} e6 {[%emt 0:00:51]} 3. c3 {[%emt 0:03:06]} d5 {[%emt 0:00:43]} 4. e5 {[%emt 0:00:08]} d4 {[%emt 0:00:17]} 5. Bd3 {[%emt 0:01:18]} Bd7 {[%emt 0:03:45]} 6. O-O {[%emt 0:08:53]} Bc6 {[%emt 0:01:59]} 7. Na3 {[%emt 0:01:00]} Ne7 {[%emt 0:11:27]} 8. cxd4 {[%emt 0:07:45]} cxd4 {[%emt 0:03:19]} 9. Nc4 {[%emt 0:10:47]} Ng6 {[%emt 0:04:14]} 10. Bxg6 {[%emt 0:02:55]} hxg6 {[%emt 0:00:08]} 11. d3 {[%emt 0:00:11]} Be7 {[%emt 0:05:25]} 12. Bf4 {[%emt 0:07:57]} g5 {[%emt 0:07:14]} 13. Bg3 {[%emt 0:01:02]} Qd5 {[%emt 0:04:22]} 14. Qe2 {[%emt 0:10:48]} Nd7 {[%emt 0:01:32]} 15. Ne1 {[%emt 0:10:00]} f5 {[%emt 0:00:55]} 16. exf6 {[%emt 0:03:33]} gxf6 {[%emt 0:00:08]} 17. f4 {[%emt 0:06:51]} gxf4 {[%emt 0:00:42]} 18. Rxf4 {[%emt 0:00:16]} e5 {[%emt 0:01:23]} 19. Rg4 {[%emt 0:04:48]} O-O-O {[%emt 0:08:25]} 20. Nf3 {[%emt 0:01:56]} Nb6 {[%emt 0:32:33]} 21. Rc1 {[%emt 0:06:31]} Rhe8 {[%emt 0:03:18]} 22. Rg7 {[%emt 0:04:02]} Nxc4 {[%emt 0:02:36]} 23. Rxc4 {[%emt 0:00:25]} Bd6 {[%emt 0:01:14]} 24. Nh4 {[%emt 0:03:39]} Kb8 {[%emt 0:00:12]} 25. Nf5 {[%emt 0:00:26]} Ka8 {[%emt 0:00:45]} 26. h4 {[%emt 0:02:32]} Bf8 {[%emt 0:01:03]} 27. Rc7 {[%emt 0:00:53]} e4 {[%emt 0:01:20]} 28. R4xc6 {[%emt 0:00:44]} bxc6 {[%emt 0:00:10]} 29. dxe4 {[%emt 0:00:18]} d3 {[%emt 0:01:55]} 30. Qf2 {[%emt 0:01:16]} Qc5 {[%emt 0:00:11]} 31. Ne3 {[%emt 0:00:42]} d2 {[%emt 0:00:43]} 32. Nd1 {[%emt 0:00:38]} Rxe4 {[%emt 0:00:14]} 33. Kh2 {[%emt 0:00:33]} Qxf2 {[%emt 0:00:10]} 34. Bxf2 {[%emt 0:00:07]} Bd6+ {[%emt 0:00:04]} 0-1

[Event "16th Deltalift Open 2019"]
[Site "Halmstad"]
[Date "2019.05.31"]
[Round "6.4"]
[White "Hector, Jonny"]
[Black "Bellon Lopez, Juan Manuel"]
[Result "1-0"]
[ECO "B34"]
[WhiteElo "2488"]
[BlackElo "2345"]
[Annotator "ChessBase"]
[PlyCount "97"]
[EventDate "2019.05.30"]
[EventType "swiss"]
[EventCountry "SWE"]
[SourceTitle "playchess.com"]
[Source "ChessBase"]
[SourceQuality "1"]
[TimeControl "40/5400+30:1800+30"]

1. e4 {[%emt 0:00:00]} c5 {[%emt 0:00:21]} 2. Nf3 {[%emt 0:00:06]} Nc6 {[%emt 0:00:09]} 3. Nc3 {[%emt 0:00:09]} g6 {[%emt 0:00:29]} 4. d4 {[%emt 0:00:48]} cxd4 {[%emt 0:00:06]} 5. Nxd4 {[%emt 0:00:10]} Bg7 {[%emt 0:00:08]} 6. Nb3 {[%emt 0:00:58]} d6 {[%emt 0:00:09]} 7. Be2 {[%emt 0:00:22]} Nf6 {[%emt 0:00:07]} 8. O-O {[%emt 0:00:34]} O-O {[%emt 0:00:06]} 9. Re1 {[%emt 0:00:23]} a6 {[%emt 0:03:12]} 10. Bg5 {[%emt 0:02:05]} b5 {[%emt 0:01:36]} 11. Bf1 {[%emt 0:00:41]} h6 {[%emt 0:05:06]} 12. Bh4 {[%emt 0:04:44]} e5 {[%emt 0:02:14]} 13. Qd3 {[%emt 0:15:39]} g5 {[%emt 0:12:43]} 14. Bg3 {[%emt 0:00:23]} Be6 {[%emt 0:07:01]} 15. Rad1 {[%emt 0:01:16]} Nb4 {[%emt 0:14:24]} 16. Qd2 {[%emt 0:09:01]} Nh5 {[%emt 0:07:51]} 17. a3 {[%emt 0:03:21]} Nxg3 {[%emt 0:00:06]} 18. hxg3 {[%emt 0:01:16]} Nc6 {[%emt 0:02:05]} 19. Qxd6 {[%emt 0:01:32]} Qxd6 {[%emt 0:04:43]} 20. Rxd6 {[%emt 0:00:09]} Rfc8 {[%emt 0:01:25]} 21. Nd5 {[%emt 0:05:45]} Bf8 {[%emt 0:08:24]} 22. Rxe6 {[%emt 0:00:43]} fxe6 {[%emt 0:00:00]} 23. Nb6 {[%emt 0:00:19]} Nd4 {[%emt 0:00:04]} 24. Na1 {[%emt 0:05:18]} Bc5 {[%emt 0:07:57]} 25. Nxa8 {[%emt 0:00:52]} Rxa8 {[%emt 0:00:13]} 26. c3 {[%emt 0:02:01]} Nc6 {[%emt 0:00:21]} 27. Rd1 {[%emt 0:04:44]} Kf8 {[%emt 0:02:53]} 28. Nb3 {[%emt 0:02:28]} Be7 {[%emt 0:00:42]} 29. Bd3 {[%emt 0:02:37]} Bd8 {[%emt 0:01:56]} 30. Nc5 {[%emt 0:03:02]} Ke7 {[%emt 0:02:54]} 31. Bb1 {[%emt 0:03:56]} Bb6 {[%emt 0:05:14]} 32. Nd3 {[%emt 0:03:33]} Kf6 {[%emt 0:02:30]} 33. Kf1 {[%emt 0:00:21]} a5 {[%emt 0:00:45]} 34. Ke2 {[%emt 0:04:03]} b4 {[%emt 0:00:21]} 35. Rh1 {[%emt 0:00:32]} Kg7 {[%emt 0:01:12]} 36. Ba2 {[%emt 0:01:06]} bxc3 {[%emt 0:03:42]} 37. bxc3 {[%emt 0:00:09]} Nd8 {[%emt 0:00:13]} 38. Nxe5 {[%emt 0:02:39]} Bc5 {[%emt 0:00:49]} 39. a4 {[%emt 0:00:31]} Rb8 {[%emt 0:01:55]} 40. Nd3 {[%emt 0:00:51]} Bd6 {[%emt 0:01:28]} 41. Rd1 {[%emt 0:35:35]} Rb6 {[%emt 0:05:16]} 42. e5 {[%emt 0:00:00]} Be7 {[%emt 0:01:29]} 43. f4 {[%emt 0:00:00]} Nb7 {[%emt 0:00:30]} 44. Rd2 {[%emt 0:00:00]} Nc5 {[%emt 0:01:52]} 45. Nxc5 {[%emt 0:00:00]} Bxc5 {[%emt 0:00:04]} 46. Bc4 {[%emt 0:00:00]} g4 {[%emt 0:06:44]} 47. Rd7+ {[%emt 0:00:00]} Kf8 {[%emt 0:08:16]} 48. Bb5 {[%emt 0:00:00]} Kg8 {[%emt 0:00:36]} 49. Rc7 1-0

[Event "16th Deltalift Open 2019"]
[Site "Halmstad"]
[Date "2019.05.31"]
[Round "6.5"]
[White "Jepson, Christian"]
[Black "Johnson, Daniel"]
[Result "1-0"]
[ECO "E06"]
[WhiteElo "2395"]
[BlackElo "2233"]
[Annotator "ChessBase"]
[PlyCount "101"]
[EventDate "2019.05.30"]
[EventType "swiss"]
[EventCountry "SWE"]
[SourceTitle "playchess.com"]
[Source "ChessBase"]
[SourceQuality "1"]
[TimeControl "40/5400+30:1800+30"]

1. d4 {[%emt 0:00:00]} d5 {[%emt 0:04:35]} 2. c4 {[%emt 0:00:00]} e6 {[%emt 0:00:09]} 3. Nf3 {[%emt 0:00:00]} Nf6 {[%emt 0:00:15]} 4. g3 {[%emt 0:00:00]} Be7 {[%emt 0:00:20]} 5. Bg2 {[%emt 0:00:00]} O-O {[%emt 0:00:16]} 6. O-O {[%emt 0:00:33]} dxc4 {[%emt 0:00:56]} 7. Qc2 {[%emt 0:00:05]} a6 {[%emt 0:00:39]} 8. a4 {[%emt 0:00:31]} Bd7 {[%emt 0:00:48]} 9. Qxc4 {[%emt 0:00:13]} Bc6 {[%emt 0:01:14]} 10. Bg5 {[%emt 0:00:08]} Nbd7 {[%emt 0:04:58]} 11. Nc3 {[%emt 0:00:33]} Rc8 {[%emt 0:02:23]} 12. Rfe1 {[%emt 0:05:02]} Ne4 {[%emt 0:06:01]} 13. Bxe7 {[%emt 0:12:45]} Qxe7 {[%emt 0:00:22]} 14. Qd3 {[%emt 0:00:43]} Nxc3 {[%emt 0:26:59]} 15. bxc3 {[%emt 0:00:55]} Bxf3 {[%emt 0:06:46]} 16. Qxf3 {[%emt 0:03:28]} c6 {[%emt 0:02:59]} 17. Reb1 {[%emt 0:00:20]} Rc7 {[%emt 0:01:37]} 18. a5 {[%emt 0:06:18]} e5 {[%emt 0:13:21]} 19. e3 {[%emt 0:02:01]} Rd8 {[%emt 0:03:43]} 20. Rb2 {[%emt 0:07:22]} Rb8 {[%emt 0:06:15]} 21. Qe4 {[%emt 0:04:39]} g6 {[%emt 0:02:51]} 22. h3 {[%emt 0:03:58]} f5 {[%emt 0:01:59]} 23. Qf3 {[%emt 0:03:46]} e4 {[%emt 0:01:46]} 24. Qf4 {[%emt 0:18:09]} Nf6 {[%emt 0:02:06]} 25. c4 {[%emt 0:00:10]} Nh5 {[%emt 0:04:32]} 26. Qh6 {[%emt 0:03:19]} Rd8 {[%emt 0:01:41]} 27. Rb6 {[%emt 0:08:19]} Qg7 {[%emt 0:02:02]} 28. Qxg7+ {[%emt 0:02:03]} Kxg7 {[%emt 0:01:31]} 29. Rab1 {[%emt 0:00:53]} Rdd7 {[%emt 0:00:15]} 30. g4 {[%emt 0:01:24]} Nf6 {[%emt 0:00:23]} 31. gxf5 {[%emt 0:02:27]} gxf5 {[%emt 0:00:06]} 32. Kh2 {[%emt 0:00:38]} Rf7 {[%emt 0:01:32]} 33. Rg1 {[%emt 0:06:16]} Kf8 {[%emt 0:00:38]} 34. Bf1 {[%emt 0:02:34]} Rg7 {[%emt 0:00:29]} 35. Rg3 {[%emt 0:02:07]} Rxg3 {[%emt 0:00:31]} 36. Kxg3 {[%emt 0:00:08]} Nd7 {[%emt 0:00:29]} 37. Rb1 {[%emt 0:00:18]} Ke7 {[%emt 0:00:23]} 38. f3 {[%emt 0:00:43]} Ke6 {[%emt 0:00:37]} 39. fxe4 {[%emt 0:04:08]} fxe4 {[%emt 0:00:11]} 40. h4 {[%emt 0:02:08]} Nf6 {[%emt 0:00:49]} 41. Bh3+ {[%emt 0:30:46]} Kd6 {[%emt 0:05:41]} 42. Kf4 {[%emt 0:00:00]} Rf7 {[%emt 0:11:50]} 43. Kg5 {[%emt 0:00:00]} Ne8 {[%emt 0:12:37]} 44. Bc8 {[%emt 0:00:00]} Rf3 {[%emt 0:01:27]} 45. Rxb7 {[%emt 0:00:00]} h6+ {[%emt 0:00:53]} 46. Kg6 {[%emt 0:00:00]} Rxe3 {[%emt 0:00:22]} 47. Rd7+ {[%emt 0:00:00]} Ke6 {[%emt 0:00:18]} 48. d5+ {[%emt 0:00:00]} cxd5 {[%emt 0:00:36]} 49. Rxd5+ {[%emt 0:00:00]} Ke7 {[%emt 0:00:27]} 50. Rd7+ {[%emt 0:00:00]} Ke6 {[%emt 0:00:45]} 51. Rd3+ {[%emt 0:00:00]} 1-0

[Event "16th Deltalift Open 2019"]
[Site "Halmstad"]
[Date "2019.05.31"]
[Round "6.6"]
[White "Pantzar, Milton"]
[Black "Ziegler, Nathalie"]
[Result "1-0"]
[ECO "A05"]
[WhiteElo "2390"]
[BlackElo "1789"]
[Annotator "ChessBase"]
[PlyCount "121"]
[EventDate "2019.05.30"]
[EventType "swiss"]
[EventCountry "SWE"]
[SourceTitle "playchess.com"]
[Source "ChessBase"]
[SourceQuality "1"]
[TimeControl "40/5400+30:1800+30"]

1. Nf3 {[%emt 0:00:00]} Nf6 {[%emt 0:00:00]} 2. e3 {[%emt 0:00:00]} g6 {[%emt 0:00:03]} 3. b4 {[%emt 0:00:00]} Bg7 {[%emt 0:00:20]} 4. Bb2 {[%emt 0:00:02]} O-O {[%emt 0:00:06]} 5. c4 {[%emt 0:00:19]} d6 {[%emt 0:00:23]} 6. Be2 {[%emt 0:00:15]} e5 {[%emt 0:00:22]} 7. d3 {[%emt 0:00:37]} Nc6 {[%emt 0:00:36]} 8. b5 {[%emt 0:01:31]} Ne7 {[%emt 0:00:19]} 9. O-O {[%emt 0:00:36]} Bf5 {[%emt 0:08:49]} 10. Nc3 {[%emt 0:01:41]} Nd7 {[%emt 0:01:33]} 11. Nd2 {[%emt 0:02:47]} Nc5 {[%emt 0:01:32]} 12. Nb3 {[%emt 0:06:17]} b6 {[%emt 0:04:57]} 13. Qc2 {[%emt 0:05:40]} Rc8 {[%emt 0:07:11]} 14. Rfd1 {[%emt 0:02:48]} Qd7 {[%emt 0:04:41]} 15. Nxc5 {[%emt 0:03:24]} bxc5 {[%emt 0:01:30]} 16. Bf3 {[%emt 0:01:27]} Bg4 {[%emt 0:01:57]} 17. Qe2 {[%emt 0:07:46]} Bxf3 {[%emt 0:06:15]} 18. Qxf3 {[%emt 0:00:06]} c6 {[%emt 0:01:01]} 19. a4 {[%emt 0:08:32]} f5 {[%emt 0:06:21]} 20. Rab1 {[%emt 0:03:59]} Rc7 {[%emt 0:01:25]} 21. Ba1 {[%emt 0:05:54]} Qe6 {[%emt 0:04:46]} 22. bxc6 {[%emt 0:03:02]} Nxc6 {[%emt 0:08:27]} 23. Nb5 {[%emt 0:05:28]} Rcc8 {[%emt 0:00:30]} 24. Qd5 {[%emt 0:00:15]} Rf6 {[%emt 0:03:16]} 25. Bc3 {[%emt 0:05:49]} a5 {[%emt 0:03:49]} 26. Nxd6 {[%emt 0:01:41]} Qxd5 {[%emt 0:00:21]} 27. cxd5 {[%emt 0:00:03]} Rxd6 {[%emt 0:00:38]} 28. dxc6 {[%emt 0:00:07]} Rdxc6 {[%emt 0:01:11]} 29. Bxa5 {[%emt 0:09:26]} Ra6 {[%emt 0:00:35]} 30. Rb5 {[%emt 0:00:38]} Rca8 {[%emt 0:03:01]} 31. Bc3 {[%emt 0:01:35]} Rxa4 {[%emt 0:02:10]} 32. Rxc5 {[%emt 0:00:10]} Ra3 {[%emt 0:00:44]} 33. g3 {[%emt 0:01:37]} Bf8 {[%emt 0:02:55]} 34. Rc7 {[%emt 0:01:56]} Bg7 {[%emt 0:01:14]} 35. Rb1 {[%emt 0:00:59]} R3a7 {[%emt 0:02:06]} 36. Rc5 {[%emt 0:04:59]} Re8 {[%emt 0:04:20]} 37. Rd5 {[%emt 0:01:41]} Rc7 {[%emt 0:02:11]} 38. Ba5 {[%emt 0:01:06]} Rf7 {[%emt 0:01:42]} 39. Rbb5 {[%emt 0:03:52]} f4 {[%emt 0:02:19]} 40. gxf4 {[%emt 0:01:27]} exf4 {[%emt 0:00:10]} 41. e4 {[%emt 0:30:24]} f3 {[%emt 0:30:56]} 42. h3 {[%emt 0:02:12]} Bh6 {[%emt 0:00:53]} 43. Bc3 {[%emt 0:04:13]} Rc8 {[%emt 0:08:09]} 44. Be5 {[%emt 0:01:10]} Be3 {[%emt 0:03:07]} 45. Rb8 {[%emt 0:00:39]} Rxb8 {[%emt 0:00:24]} 46. Bxb8 {[%emt 0:00:05]} Bb6 {[%emt 0:00:34]} 47. d4 {[%emt 0:01:14]} Kg7 {[%emt 0:00:36]} 48. Kh2 {[%emt 0:00:25]} Re7 {[%emt 0:01:07]} 49. Be5+ {[%emt 0:00:13]} Kf7 {[%emt 0:00:49]} 50. Kg3 {[%emt 0:00:12]} Bc7 {[%emt 0:00:25]} 51. Bxc7 {[%emt 0:00:27]} Rxc7 {[%emt 0:00:03]} 52. Kxf3 {[%emt 0:00:20]} Rc3+ {[%emt 0:00:33]} 53. Kg2 {[%emt 0:00:32]} Ke6 {[%emt 0:00:56]} 54. f3 {[%emt 0:00:32]} Rd3 {[%emt 0:00:00]} 55. Kg3 {[%emt 0:00:00]} h6 {[%emt 0:00:00]} 56. h4 {[%emt 0:00:00]} Rd2 {[%emt 0:00:00]} 57. h5 {[%emt 0:00:00]} g5 {[%emt 0:00:00]} 58. Rd8 {[%emt 0:00:00]} Ke7 {[%emt 0:00:00]} 59. Rh8 {[%emt 0:00:00]} Rxd4 {[%emt 0:00:00]} 60. Rxh6 {[%emt 0:00:00]} Rd1 {[%emt 0:00:00]} 61. Rg6 {[%emt 0:00:00]} 1-0

[Event "16th Deltalift Open 2019"]
[Site "Halmstad"]
[Date "2019.05.31"]
[Round "6.7"]
[White "Crevatin, Leo"]
[Black "Olund, Joar"]
[Result "1/2-1/2"]
[ECO "E61"]
[WhiteElo "2210"]
[BlackElo "2328"]
[Annotator "ChessBase"]
[PlyCount "52"]
[EventDate "2019.05.30"]
[EventType "swiss"]
[EventCountry "SWE"]
[SourceTitle "playchess.com"]
[Source "ChessBase"]
[SourceQuality "1"]
[TimeControl "40/5400+30:1800+30"]

1. d4 {[%emt 0:00:00]} Nf6 {[%emt 0:00:00]} 2. c4 {[%emt 0:00:00]} g6 {[%emt 0:00:00]} 3. Nc3 {[%emt 0:00:00]} Bg7 {[%emt 0:00:00]} 4. Nf3 {[%emt 0:00:00]} O-O {[%emt 0:00:00]} 5. Bg5 {[%emt 0:00:00]} h6 {[%emt 0:03:13]} 6. Bh4 {[%emt 0:00:31]} d6 {[%emt 0:01:01]} 7. e3 {[%emt 0:00:06]} Bf5 {[%emt 0:00:18]} 8. h3 {[%emt 0:02:56]} Ne4 {[%emt 0:02:50]} 9. Nxe4 {[%emt 0:01:40]} Bxe4 {[%emt 0:00:01]} 10. Bd3 {[%emt 0:00:35]} Bxd3 {[%emt 0:03:38]} 11. Qxd3 {[%emt 0:00:02]} Nc6 {[%emt 0:00:29]} 12. O-O {[%emt 0:02:02]} Qe8 {[%emt 0:02:02]} 13. d5 {[%emt 0:06:19]} Ne5 {[%emt 0:08:03]} 14. Nxe5 {[%emt 0:00:02]} Bxe5 {[%emt 0:05:02]} 15. f4 {[%emt 0:00:59]} Bg7 {[%emt 0:04:46]} 16. e4 {[%emt 0:01:08]} Rb8 {[%emt 0:04:55]} 17. Rab1 {[%emt 0:00:35]} b5 {[%emt 0:00:44]} 18. b3 {[%emt 0:05:31]} e6 {[%emt 0:05:17]} 19. dxe6 {[%emt 0:07:03]} fxe6 {[%emt 0:00:20]} 20. cxb5 {[%emt 0:00:07]} Qxb5 {[%emt 0:00:21]} 21. Qxb5 {[%emt 0:00:14]} Rxb5 {[%emt 0:00:01]} 22. Rbc1 {[%emt 0:01:05]} Rf7 {[%emt 0:04:42]} 23. Be1 {[%emt 0:08:11]} Bd4+ {[%emt 0:02:10]} 24. Bf2 {[%emt 0:00:29]} Rb4 {[%emt 0:03:30]} 25. Rc4 {[%emt 0:03:25]} Rxc4 {[%emt 0:00:40]} 26. bxc4 {[%emt 0:00:01]} Bxf2+ {[%emt 0:07:25]} 1/2-1/2